[Event "9. Korbacher Open 2017"]
[Site "Korbach"]
[Date "2017.10.21"]
[Round "4"]
[White "Heinemann, Ernst"]
[Black "Van der Meiden, Dirk"]
[Result "1/2-1/2"]
[ECO "C29"]
[WhiteElo "2099"]
[BlackElo "1958"]
[Annotator "NA"]
[PlyCount "132"]
[EventDate "2017.??.??"]
[EventType "swiss"]
[EventCountry "GER"]
[SourceTitle "playchess.com"]
[Source "ChessBase"]
[SourceQuality "1"]
[TimeControl "40/5400+30:1800+30"]

{[%evp 9,95,-35,-7,-10,0,-55,0,12,0,0,2,13,18,5,4,-26,0,0,21,0,39,33,27,38,32767,32767,51,62,64,68,85,27,36,-14,0,0,0,-22,0,-39,0,-27,-34,-26,-31,-27,-27,-31,-33,-37,-25,-47,-24,32767,32767,51,87,0,32767,32767,0,32767,32767,0,-4,-18,-14,-14,0,0,0,0,-6,-93,-116,-106,-98,-122,-115,32767,-147,32767,32767,32767,32767,32767,-184,-188]} 1. e4 {[%emt 0:00:00]} Nf6 {[%emt 0:02:33]} 2. Nc3 {[%emt 0:00:11]} e5 {[%emt 0:00:51]} 3. f4 {[%emt 0:00:57]} d5 {[%emt 0:00:15]} 4. fxe5 {[%emt 0:00:23]} Nxe4 {[%emt 0:00:19]} 5. Qf3 {[%emt 0:00:14]} Nxc3 {[%emt 0:03:53] C29: Vienna Game: 2...Nf6 3 f4} (5... f5 6. d3 Nxc3 7. bxc3 c5 8. Qg3 Nc6 9. Nf3 g6 10. Be2 Bg7 11. O-O O-O 12. d4 Re8 13. a4 Qb6 {0-1 (41) Barskij,V (2386)-Ozgibcev,A (2376) Sochi 2017}) 6. dxc3 {[%emt 0:00:29]} Be7 {[%emt 0:01:07] LiveBook: 3 Games} 7. Bd3 {[%emt 0:03:22]} c6 {[%emt 0:04:59]} 8. Ne2 {[%emt 0:01:47]} Nd7 $146 {[%emt 0:00:47]} ({Predecessor:} 8... Be6 9. O-O Nd7 10. Qg3 Qc7 11. Nd4 O-O-O 12. Bf5 Bc5 13. b4 {½-½ (28) Hoeckendorf,H (2245)-Goebel,W (2175) Germany 1998}) 9. Bf4 {[%emt 0:13:18]} Nc5 {[%emt 0:00:46]} 10. O-O {[%emt 0:02:40]} Nxd3 {[%emt 0:01:05]} 11. cxd3 {[%emt 0:00:49]} O-O {[%emt 0:01:31]} 12. Qe3 {[%emt 0:05:51]} Be6 {[%emt 0:03:39]} 13. b3 {[%emt 0:02:32]} Qd7 {[%emt 0:00:41]} 14. Qg3 {[%emt 0:01:15]} Rfe8 {[%emt 0:09:22]} 15. Bh6 {[%emt 0:09:40]} Bf8 {[%emt 0:01:52]} 16. Rae1 {[%emt 0:04:53]} Bg4 {[%emt 0:10:46]} 17. Bg5 {[%emt 0:13:16]} Bxe2 {[%emt 0:05:32]} (17... f6 $5 18. Bf4 fxe5 19. Bxe5 Rxe5 20. Qxe5 Re8 $11) 18. Rxe2 {[%emt 0:00:05]} d4 {[%emt 0:12:37]} 19. c4 {[%emt 0:01:06]} f5 {[%emt 0:09:07]} 20. Ref2 {[%emt 0:02:08]} (20. h4 $16) 20... g6 {[%emt 0:01:55]} 21. h4 {[%emt 0:00:41]} (21. Bf6 $5 {[%cal Rf2f5]}) 21... Bg7 {[%emt 0:01:06]} 22. Bf4 {[%emt 0:02:20]} Re6 {[%emt 0:03:38]} 23. Re2 {[%emt 0:02:11]} Rae8 {[%emt 0:00:41]} 24. Rfe1 {[%emt 0:01:17]} Qe7 {[%emt 0:04:25]} 25. Bg5 {[%emt 0:01:29]} Qc5 {[%emt 0:00:56]} 26. Bf4 {[%emt 0:00:25]} h6 {[%emt 0:02:47]} 27. Kf1 {[%emt 0:00:44]} Qe7 {[%emt 0:01:22]} 28. Kg1 {[%emt 0:01:11]} Kh7 {[%emt 0:00:10]} 29. Kh1 {[%emt 0:02:00]} Qd8 {[%emt 0:00:44]} 30. Qh3 {[%emt 0:00:54]} Kg8 {[%emt 0:05:21]} 31. Kg1 {[%emt 0:01:12]} Bf6 {[%emt 0:03:30]} 32. h5 {[%emt 0:02:00]} Bg5 {[%emt 0:02:46]} 33. Bxg5 {[%emt 0:01:28]} ({White should play} 33. hxg6 $14 Rf8 34. Rf1) 33... Qxg5 {[%emt 0:00:23]} 34. hxg6 {[%emt 0:00:32]} Kg7 {[%emt 0:01:31]} 35. Qf3 {[%emt 0:01:09]} Kxg6 {[%emt 0:01:21]} 36. b4 {[%emt 0:01:07]} Qg4 {[%emt 0:01:18]} 37. Qxg4+ {[%emt 0:04:09]} fxg4 {[%emt 0:00:01]} 38. g3 {[%emt 0:00:30]} Kg5 {[%emt 0:01:33]} 39. Re4 {[%emt 0:01:03]} h5 {[%emt 0:01:09]} 40. Kg2 {[%emt 0:00:29]} b6 {[%emt 0:30:59]} 41. c5 {[%emt 0:33:25] [#]} (41. Rxd4 $11 Rxe5 42. Rxe5+ Rxe5 43. Re4) 41... bxc5 $1 {[%emt 0:00:00]} 42. bxc5 {[%emt 0:00:00]} Rd8 {[%emt 0:00:00]} 43. R1e2 {[%emt 0:00:00]} Rd5 {[%emt 0:00:00]} 44. Kf2 {[%emt 0:00:00]} Rxc5 {[%emt 0:00:00]} 45. Rxd4 {[%emt 0:00:00]} Rcxe5 {[%emt 0:00:00]} 46. Rxe5+ {[%emt 0:00:00]} Rxe5 {[%emt 0:00:00]} 47. Ra4 {[%emt 0:00:00]} Rf5+ {[%emt 0:00:00]} 48. Kg2 $19 {[%emt 0:00:00]} Rc5 {[%emt 0:00:00]} 49. Rxa7 {[%emt 0:00:00]} Rc2+ {[%emt 0:00:00]} 50. Kg1 {[%emt 0:00:00]} h4 {[%emt 0:00:00]} 51. Rg7+ {[%emt 0:00:00]} Kf5 {[%emt 0:00:00]} 52. Rf7+ {[%emt 0:00:00]} Ke5 {[%emt 0:00:00]} 53. Rf4 {[%emt 0:02:05]} Rxa2 {[%emt 0:00:33]} 54. Re4+ {[%emt 0:00:19]} Kf5 {[%emt 0:00:30]} 55. gxh4 {[%emt 0:00:14]} Rd2 {[%emt 0:01:00]} 56. Rc4 {[%emt 0:00:44]} Rxd3 {[%emt 0:00:50]} 57. Rxc6 {[%emt 0:00:09]} Kf4 {[%emt 0:00:24]} 58. Rc1 {[%emt 0:00:33]} Kg3 {[%emt 0:01:56]} 59. h5 {[%emt 0:00:35]} Rd6 {[%emt 0:00:26]} 60. h6 {[%emt 0:00:57]} Rxh6 {[%emt 0:00:16]} 61. Rc3+ {[%emt 0:00:03]} Kh4 {[%emt 0:00:19]} 62. Kg2 {[%emt 0:00:09]} Ra6 {[%emt 0:00:31]} 63. Rc2 {[%emt 0:00:05]} Ra4 {[%emt 0:00:05]} 64. Rb2 {[%emt 0:00:07]} Ra3 {[%emt 0:00:47]} 65. Rc2 {[%emt 0:00:05]} Rg3+ {[%emt 0:00:07]} 66. Kh2 {[%emt 0:00:09]} Ra3 {[%emt 0:01:16]} 1/2-1/2

[Event "9. Korbacher Open 2017"]
[Site "Korbach"]
[Date "2017.10.21"]
[Round "4"]
[White "Hoekstra, Peter"]
[Black "Koerber, Thomas"]
[Result "1-0"]
[ECO "B08"]
[WhiteElo "2074"]
[BlackElo "1857"]
[Annotator "NA"]
[PlyCount "91"]
[EventDate "2017.??.??"]
[EventType "swiss"]
[EventCountry "GER"]
[SourceTitle "playchess.com"]
[Source "ChessBase"]
[SourceQuality "1"]
[TimeControl "40/5400+30:1800+30"]

{[%evp 8,91,39,27,34,23,48,41,64,35,60,57,71,40,91,-8,45,-4,57,0,25,-14,38,27,65,14,62,56,60,11,32767,0,0,0,0,0,32767,0,83,19,79,85,105,56,32767,16,15,20,272,267,396,32767,422,477,488,486,477,310,314,352,346,362,523,517,519,570,955,725,768,839,32767,883,1121,1250,1164,864,2224,1214,1223,1116,732,1026,1581,741,29981,1365]} 1. e4 {[%emt 0:03:43]} g6 {[%emt 0:01:03]} 2. d4 {[%emt 0:00:11]} d6 {[%emt 0:00:25]} 3. Nc3 {[%emt 0:00:10]} Bg7 {[%emt 0:00:20]} 4. Be3 {[%emt 0:00:11]} Nf6 {[%emt 0:03:16]} 5. h3 {[%emt 0:00:33]} O-O {[%emt 0:00:23]} 6. Nf3 {[%emt 0:00:06]} c6 {[%emt 0:02:38]} 7. a4 {[%emt 0:01:01]} a5 {[%emt 0:01:55]} 8. Be2 {[%emt 0:00:57] LiveBook: 177 Games} Qc7 {[%emt 0:01:44]} 9. O-O {[%emt 0:01:18]} Rd8 {[%emt 0:00:30] B08: Pirc Defence: Classical System} 10. Nd2 $146 {[%emt 0:00:46]} ({Predecessor:} 10. Qc1 Na6 11. Bc4 Nb4 12. Bb3 d5 13. Bf4 Qb6 14. e5 Nd7 15. Bh6 Nf8 16. Ne2 Na6 17. Rd1 {½-½ (42) Kuzmin,G (2508)-Matjushin,G (2416) Alushta 2003}) 10... Nbd7 {[%emt 0:04:39]} 11. Ncb1 {[%emt 0:03:51]} (11. Qe1 $16) 11... b6 {[%emt 0:02:33]} (11... e5 $11) 12. c3 {[%emt 0:00:25]} Bb7 {[%emt 0:00:26]} ({Better is} 12... e5 $11) 13. Qc2 {[%emt 0:00:22]} e5 {[%emt 0:03:08]} 14. Na3 {[%emt 0:00:20]} Rac8 {[%emt 0:03:06]} 15. f4 {[%emt 0:00:38]} Bh6 {[%emt 0:02:20]} (15... exd4 $11 16. Bxd4 (16. cxd4 Re8 $11) 16... Re8) 16. g4 {[%emt 0:23:15]} (16. Qd3 $16) 16... exf4 {[%emt 0:03:54]} 17. Bxf4 {[%emt 0:01:28]} Bxf4 {[%emt 0:01:07]} 18. Rxf4 {[%emt 0:00:05]} d5 {[%emt 0:00:32]} 19. Raf1 {[%emt 0:04:45]} dxe4 $1 {[%emt 0:01:49]} 20. Nxe4 {[%emt 0:00:29]} Nxe4 {[%emt 0:00:53]} 21. Qxe4 {[%emt 0:00:42]} Re8 {[%emt 0:16:48]} 22. Qg2 {[%emt 0:11:13]} Re7 {[%emt 0:01:35] [#]} (22... c5 $11 {bleibt in der Remisbreite.} 23. d5 Bxd5 24. Qxd5 Rxe2) 23. Qf2 {[%emt 0:02:55]} (23. Bc4 $1 $16 Rf8 24. Qh2) 23... Rf8 {[%emt 0:02:27]} 24. Bc4 {[%emt 0:02:46]} Nb8 {[%emt 0:00:51] [#]} 25. Nb1 {[%emt 0:02:27]} ({Better is} 25. h4 $1 $16) 25... Qd7 {[%emt 0:02:31]} 26. Rf6 {[%emt 0:07:50]} b5 {[%emt 0:01:57]} 27. Ba2 {[%emt 0:04:13]} Na6 $2 {[%emt 0:05:51] [#]} (27... bxa4 $11 {and Black stays safe.} 28. Bc4 Qe8) 28. Nd2 $1 {[%emt 0:00:30]} Nc7 {[%emt 0:00:26]} (28... c5 $142 29. axb5 (29. dxc5 Nxc5 30. axb5 Nd3 $14) 29... Nc7 30. dxc5 Nxb5) 29. Ne4 {[%emt 0:04:45]} Ne8 {[%emt 0:08:01]} ({But not} 29... Rxe4 $2 30. Bxf7+ Rxf7 31. Rxf7) 30. Nc5 {[%emt 0:02:40]} Nxf6 {[%emt 0:17:59]} 31. Nxd7 {[%emt 0:01:30]} Nxd7 {[%emt 0:00:07]} 32. d5 {[%emt 0:05:17]} cxd5 {[%emt 0:04:08]} 33. axb5 {[%emt 0:00:15]} Ne5 {[%emt 0:01:29]} 34. Qd4 {[%emt 0:03:38]} Rd8 {[%emt 0:01:45]} 35. c4 {[%emt 0:01:28]} Rc8 {[%emt 0:01:51]} 36. c5 {[%emt 0:01:01]} Nc4 {[%emt 0:01:24]} 37. Bxc4 {[%emt 0:01:18]} dxc4 {[%emt 0:00:05]} 38. c6 {[%emt 0:00:03]} Ba8 {[%emt 0:00:13]} 39. Qxc4 {[%emt 0:01:05]} Bxc6 {[%emt 0:01:04]} 40. bxc6 {[%emt 0:00:50]} Rec7 {[%emt 0:30:05]} 41. Rc1 {[%emt 0:31:12]} Rb8 {[%emt 0:01:11]} 42. Qf4 {[%emt 0:01:40]} Rbc8 {[%emt 0:00:13]} 43. b3 {[%emt 0:01:14]} Rxc6 {[%emt 0:01:28]} 44. Rxc6 {[%emt 0:00:10]} Rxc6 {[%emt 0:01:20]} 45. Qg5 {[%emt 0:00:15]} Rc3 {[%emt 0:00:37]} 46. Qd8+ {[%emt 0:00:15] Rc2} 1-0

[Event "9. Korbacher Open 2017"]
[Site "Korbach"]
[Date "2017.10.21"]
[Round "4"]
[White "Koellner, Christof"]
[Black "Nielsen, Klaus"]
[Result "1/2-1/2"]
[ECO "D02"]
[WhiteElo "2073"]
[BlackElo "2092"]
[Annotator "NA"]
[PlyCount "104"]
[EventDate "2017.??.??"]
[EventType "swiss"]
[EventCountry "GER"]
[SourceTitle "playchess.com"]
[Source "ChessBase"]
[SourceQuality "1"]
[TimeControl "40/5400+30:1800+30"]

{[%evp 8,84,41,33,43,33,42,29,37,27,47,27,52,46,34,34,26,27,41,20,56,77,64,81,68,64,71,79,84,59,47,32767,32767,32767,32767,32767,32767,42,32,30,24,33,43,17,10,10,53,55,50,32767,61,62,60,59,60,47,89,78,79,56,89,74,32767,90,118,122,155,143,32767,39,48,45,32767,32767,32767,127,154,154,85]} 1. d4 {[%emt 0:00:04]} d5 {[%emt 0:00:28]} 2. Nf3 {[%emt 0:00:15]} e6 {[%emt 0:01:42]} 3. e3 {[%emt 0:01:45]} Bd6 {[%emt 0:01:58]} 4. b3 {[%emt 0:00:48]} f5 {[%emt 0:03:26]} 5. c4 {[%emt 0:01:02]} c6 {[%emt 0:00:58]} 6. Bd3 {[%emt 0:01:06]} Nf6 {[%emt 0:00:08]} 7. O-O {[%emt 0:00:09]} Qe7 {[%emt 0:00:09]} 8. a4 {[%emt 0:00:16] LiveBook: 91 Games} Nbd7 {[%emt 0:08:21] A84: Dutch Defence: 2 c4 Miscellaneous} (8... a5 9. Ba3 Bxa3 10. Nxa3 O-O 11. Nc2 b6 12. Ne5 Bb7 13. cxd5 Nxd5 14. Na3 Na6 15. Bxa6 Bxa6 16. Nac4 Rac8 17. Nd3 Rfd8 18. Qe1 Bxc4 19. bxc4 {½-½ (71) Inarkiev,E (2686)-Yudin,S (2530) Cheliabinsk 2016}) 9. Ba3 {[%emt 0:01:34]} Bxa3 {[%emt 0:00:40]} 10. Nxa3 {[%emt 0:00:03]} Ne4 {[%emt 0:00:11]} 11. Nd2 {[%emt 0:06:15]} O-O {[%emt 0:00:34]} 12. f3 {[%emt 0:01:18]} Nxd2 $146 {[%emt 0:02:15]} 13. Qxd2 {[%emt 0:00:06]} e5 {[%emt 0:00:30]} 14. cxd5 {[%emt 0:00:24]} cxd5 {[%emt 0:00:54]} 15. Nb5 {[%emt 0:01:56]} Nf6 {[%emt 0:05:52]} 16. dxe5 {[%emt 0:11:29]} Qxe5 {[%emt 0:02:03]} 17. Rac1 {[%emt 0:00:32]} a6 {[%emt 0:07:21]} 18. Nd4 {[%emt 0:13:37]} f4 {[%emt 0:04:40]} 19. Rfe1 {[%emt 0:04:53]} Bd7 {[%emt 0:06:43]} 20. Bf1 {[%emt 0:00:59]} fxe3 {[%emt 0:01:01]} 21. Qxe3 {[%emt 0:02:27]} Qd6 {[%emt 0:07:25]} 22. Qe7 {[%emt 0:01:24]} Qb6 {[%emt 0:00:10]} 23. Qc5 {[%emt 0:00:23]} Qxc5 {[%emt 0:06:13]} 24. Rxc5 {[%emt 0:00:02]} Rac8 {[%emt 0:00:13]} 25. Rec1 {[%emt 0:00:31]} Rxc5 {[%emt 0:00:05]} 26. Rxc5 {[%emt 0:00:06]} Rc8 {[%emt 0:00:19]} 27. Rxc8+ {[%emt 0:00:09]} Bxc8 {[%emt 0:00:01]} 28. Kf2 {[%emt 0:00:10]} Kf7 {[%emt 0:00:12]} 29. Ke3 {[%emt 0:00:53]} Ke7 {[%emt 0:00:26]} 30. Bd3 {[%emt 0:00:57]} g6 {[%emt 0:05:54]} 31. h4 {[%emt 0:01:20]} Be6 {[%emt 0:09:31]} 32. b4 {[%emt 0:06:25]} Nd7 {[%emt 0:03:20]} 33. a5 {[%emt 0:11:34]} Ne5 {[%emt 0:00:35]} 34. Be2 {[%emt 0:03:57]} ({Much weaker is} 34. Nxe6 Kxe6 35. Kd4 Kd6 $14) 34... Bd7 {[%emt 0:00:23]} 35. g4 {[%emt 0:02:04]} h6 {[%emt 0:02:38] [#]} 36. g5 $1 {[%emt 0:04:19]} hxg5 {[%emt 0:00:23]} 37. hxg5 {[%emt 0:00:10]} Kd6 {[%emt 0:01:25]} 38. Bd1 {[%emt 0:10:28]} (38. f4 $16 Nc4+ 39. Kf2) 38... Nc4+ $1 {[%emt 0:08:59]} 39. Kf4 {[%emt 0:00:48]} Be8 {[%emt 0:08:43]} 40. Bc2 {[%emt 0:02:36]} Ne5 {[%emt 0:30:23]} 41. Kg3 {[%emt 0:36:13]} Bf7 {[%emt 0:00:00]} 42. f4 {[%emt 0:00:00]} Nc6 $16 {[%emt 0:00:00]} 43. Nxc6 {[%emt 0:00:00]} bxc6 {[%emt 0:00:00]} 44. f5 {[%emt 0:00:00]} gxf5 {[%emt 0:00:00]} 45. Kf4 {[%emt 0:00:00]} c5 {[%emt 0:00:00]} 46. bxc5+ {[%emt 0:00:00]} Kxc5 {[%emt 0:00:00]} 47. Kxf5 {[%emt 0:03:00]} Kb4 {[%emt 0:00:00]} 48. Kf6 {[%emt 0:01:32]} Bh5 {[%emt 0:00:00]} 49. Ke5 {[%emt 0:00:37]} Kxa5 {[%emt 0:04:31]} 50. Bd3 {[%emt 0:00:34]} Kb6 {[%emt 0:00:18]} 51. Kxd5 {[%emt 0:01:11]} a5 {[%emt 0:00:23]} 52. Kd4 {[%emt 0:01:13]} Kc6 {[%emt 0:01:38]} 1/2-1/2

[Event "9. Korbacher Open 2017"]
[Site "Korbach"]
[Date "2017.10.21"]
[Round "4"]
[White "Rutz, Matthias"]
[Black "Trienekens, Tjark"]
[Result "0-1"]
[ECO "A43"]
[WhiteElo "2046"]
[BlackElo "1865"]
[Annotator "NA RC"]
[PlyCount "60"]
[EventDate "2017.??.??"]
[EventType "swiss"]
[EventCountry "GER"]
[SourceTitle "playchess.com"]
[Source "ChessBase"]
[SourceQuality "1"]
[TimeControl "40/5400+30:1800+30"]

{[%evp 8,59,8,8,1,12,8,9,65,58,92,79,83,53,245,240,275,279,261,177,32767,32767,32767,32767,153,115,137,125,120,89,97,98,82,32767,-53,-35,0,0,-32,0,14,32767,32767,32767,32767,32767,32767,32767,-308,-29997,-29994,-29994,-29995,-29998]} 1. d4 c5 2. c3 e6 3. Nf3 Nc6 4. Bf4 Qb6 {LiveBook: 7 Games A43: Schmid Benoni} (4... cxd4 5. cxd4 Qb6 6. Qd2 Nf6 7. Nc3 d5 8. e3 Ne4 9. Qc2 Bd7 10. Be2 Rc8 11. O-O Be7 12. h3 {0-1 (36) Usmanov,V (2443)-Andreikin,D (2723) Sochi 2017}) 5. Qd2 Nf6 6. e3 {[%emt 0:12:48]} Nh5 $146 {[%emt 0:20:44]} ({Predecessor:} 6... d5 7. Bd3 Be7 8. Ne5 O-O 9. Qe2 c4 10. Bc2 Rd8 11. b3 cxb3 12. axb3 {0-1 (27) Vasicek,T (2064)-Sosovicka,J (2000) Kouty nad Desnou 2017}) 7. Be5 {[%emt 0:10:18]} Nxe5 {[%emt 0:08:46]} 8. dxe5 {[%emt 0:00:20]} ({Don't play} 8. Nxe5 $6 Nf6 $11) 8... Qc6 {[%emt 0:03:38]} 9. Na3 {[%emt 0:02:59]} a6 {[%emt 0:00:54]} 10. Be2 {[%emt 0:04:19]} d6 $2 {[%emt 0:06:29]} (10... g6 $16) 11. g4 {[%emt 0:04:09]} dxe5 {[%emt 0:00:56]} 12. gxh5 {[%emt 0:00:11]} e4 {[%emt 0:00:30]} 13. Ng1 {[%emt 0:15:40]} Be7 {[%emt 0:03:35]} 14. c4 {[%emt 0:05:44]} Rb8 {[%emt 0:06:10]} 15. Qc2 {[%emt 0:09:17]} b5 {[%emt 0:02:27]} 16. cxb5 {[%emt 0:05:39]} (16. O-O-O $18) 16... axb5 {[%emt 0:04:56]} 17. Nb1 {[%emt 0:00:34]} O-O {[%emt 0:07:09]} 18. Nd2 {[%emt 0:01:44]} f5 {[%emt 0:02:07]} 19. Nh3 {[%emt 0:04:04]} e5 {[%emt 0:01:44]} 20. f4 {[%emt 0:03:06]} exf3 $1 {[%emt 0:03:08]} 21. Bxf3 {[%emt 0:00:21]} Bh4+ {[%emt 0:06:23]} 22. Nf2 $1 {[%emt 0:02:46]} e4 {[%emt 0:08:08]} 23. Bg2 {[%emt 0:00:50]} f4 {[%emt 0:00:14]} (23... Qh6 $5 {[%cal Rh6e3]} 24. Qxc5 Bg5 $11) 24. Bxe4 {[%emt 0:02:51]} Bxf2+ {[%emt 0:00:39]} 25. Kxf2 {[%emt 0:00:03]} fxe3+ {[%emt 0:00:08]} 26. Ke2 {[%emt 0:02:05]} Bg4+ {[%emt 0:00:16]} 27. Kxe3 {[%emt 0:04:05]} Qh6+ {[%emt 0:00:38]} 28. Kd3 {[%emt 0:00:33]} Rfd8+ {[%emt 0:00:25]} 29. Kc3 {[%emt 0:00:16]} Qe3+ {[%emt 0:02:22]} 30. Bd3 {[%emt 0:01:16]} Qd4+ {[%emt 0:00:32] Qd1} 0-1

[Event "9. Korbacher Open 2017"]
[Site "Korbach"]
[Date "2017.10.21"]
[Round "4"]
[White "Dijkhuis, Oele"]
[Black "Stork, Oliver"]
[Result "1-0"]
[ECO "B19"]
[WhiteElo "2035"]
[BlackElo "2176"]
[Annotator "RC"]
[PlyCount "85"]
[EventDate "2017.??.??"]
[EventType "swiss"]
[EventCountry "GER"]
[SourceTitle "playchess.com"]
[Source "ChessBase"]
[SourceQuality "1"]
[TimeControl "40/5400+30:1800+30"]

1. e4 {[%emt 0:00:00]} c6 {[%emt 0:00:06]} 2. d4 {[%emt 0:00:00]} d5 {[%emt 0:00:05]} 3. Nc3 {[%emt 0:00:00]} dxe4 {[%emt 0:00:05]} 4. Nxe4 {[%emt 0:00:00]} Bf5 {[%emt 0:00:09]} 5. Ng3 {[%emt 0:00:00]} Bg6 {[%emt 0:00:07]} 6. h4 {[%emt 0:00:00]} h6 {[%emt 0:00:06]} 7. Nf3 {[%emt 0:00:03]} Nd7 {[%emt 0:00:06]} 8. h5 {[%emt 0:00:06]} Bh7 {[%emt 0:00:06]} 9. Bd3 {[%emt 0:00:05]} Bxd3 {[%emt 0:00:07]} 10. Qxd3 {[%emt 0:00:03]} e6 {[%emt 0:00:07]} 11. Bd2 {[%emt 0:00:09]} Ngf6 {[%emt 0:00:08]} 12. O-O-O {[%emt 0:00:07]} Be7 {[%emt 0:00:07]} 13. Ne4 {[%emt 0:00:06]} Nxe4 {[%emt 0:00:06]} 14. Qxe4 {[%emt 0:00:03]} Nf6 {[%emt 0:00:08]} 15. Qd3 {[%emt 0:00:04]} c5 {[%emt 0:03:09]} 16. Qb5+ {[%emt 0:00:06]} Qd7 {[%emt 0:00:08]} 17. Qxd7+ {[%emt 0:00:05]} Nxd7 {[%emt 0:00:51]} 18. Be3 {[%emt 0:00:06]} Nf6 {[%emt 0:25:41]} 19. dxc5 {[%emt 0:04:55]} Rc8 {[%emt 0:03:16]} 20. b4 {[%emt 0:00:29]} a5 {[%emt 0:02:20]} 21. a3 {[%emt 0:04:16]} O-O {[%emt 0:19:22]} 22. Kb2 {[%emt 0:10:54]} axb4 {[%emt 0:13:00]} 23. axb4 {[%emt 0:00:07]} Nd5 {[%emt 0:03:13]} 24. Bd2 {[%emt 0:02:04]} b6 {[%emt 0:07:28]} 25. c4 {[%emt 0:03:02]} Nf6 {[%emt 0:00:39]} 26. cxb6 {[%emt 0:01:13]} Rxc4 {[%emt 0:00:40]} 27. Ne5 {[%emt 0:00:44]} Re4 {[%emt 0:03:25]} 28. Nc6 {[%emt 0:06:38]} Nd5 {[%emt 0:01:56]} 29. b7 {[%emt 0:04:52]} Bd6 {[%emt 0:05:40]} 30. Be3 {[%emt 0:01:43]} Bc7 {[%emt 0:09:30]} 31. Bc5 {[%emt 0:06:28]} Re8 {[%emt 0:01:01]} 32. Ra1 {[%emt 0:01:44]} Re2+ {[%emt 0:01:46]} 33. Kb3 {[%emt 0:03:01]} Rd2 {[%emt 0:01:07]} 34. Ra3 {[%emt 0:03:07]} Kh7 {[%emt 0:00:35]} 35. Ra8 {[%emt 0:00:41]} Nf6 {[%emt 0:00:37]} 36. Be7 {[%emt 0:02:50]} Rg8 {[%emt 0:00:41]} 37. Rxg8 {[%emt 0:08:31]} Kxg8 {[%emt 0:00:05]} 38. Bxf6 {[%emt 0:01:36]} gxf6 {[%emt 0:00:04]} 39. b8=Q+ {[%emt 0:00:51]} Bxb8 {[%emt 0:00:04]} 40. Nxb8 {[%emt 0:00:05]} Rxf2 {[%emt 0:30:10]} 41. b5 {[%emt 0:33:21]} Rd2 {[%emt 0:01:10]} 42. Nc6 {[%emt 0:01:06]} Kf8 {[%emt 0:01:33]} 43. Ra1 {[%emt 0:02:53]} 1-0

[Event "9. Korbacher Open 2017"]
[Site "Korbach"]
[Date "2017.10.21"]
[Round "4"]
[White "Van Randtwijk, Mick"]
[Black "Sanati, Charlotte"]
[Result "0-1"]
[ECO "B90"]
[WhiteElo "2028"]
[BlackElo "2098"]
[Annotator "NA"]
[PlyCount "77"]
[EventDate "2017.??.??"]
[EventType "swiss"]
[EventCountry "GER"]
[SourceTitle "playchess.com"]
[Source "ChessBase"]
[SourceQuality "1"]
[TimeControl "40/5400+30:1800+30"]

{[%evp 8,76,25,24,27,14,15,18,10,15,16,2,32767,9,38,41,104,39,72,23,25,22,30,20,29,35,35,43,163,32767,32767,146,163,152,141,32767,32767,143,174,164,178,32767,196,210,238,252,316,32767,32767,32767,559,598,32767,983,810,1037,1025,1406,32767,1543,29991,12836,29992,29992,29992,29992,29993,29994,29994,29995,29995]} 1. e4 {[%emt 0:00:00]} c5 {[%emt 0:00:07]} 2. Nf3 {[%emt 0:00:00]} d6 {[%emt 0:00:06]} 3. d4 {[%emt 0:00:00]} cxd4 {[%emt 0:00:07]} 4. Nxd4 {[%emt 0:00:00]} Nf6 {[%emt 0:00:07]} 5. Nc3 {[%emt 0:00:04]} a6 {[%emt 0:00:12]} 6. Be3 {[%emt 0:00:12]} e5 {[%emt 0:00:16]} 7. Nf3 {[%emt 0:00:11]} Be7 {[%emt 0:02:01]} 8. Bc4 {[%emt 0:00:16] LiveBook: 1332 Games} O-O {[%emt 0:00:28]} 9. O-O {[%emt 0:00:35]} Qc7 {[%emt 0:02:25]} 10. Bb3 {[%emt 0:00:36] B90: Sizilianisch (Najdorf-Variante, Abweichungen)} Bg4 {[%emt 0:01:54]} (10... Be6 11. Nh4 g6 12. Bh6 Re8 13. Qd2 Nbd7 14. Nf5 Bxb3 15. axb3 Nc5 16. Rae1 Ne6 17. Ne3 Rac8 18. h3 Bf8 19. Bxf8 Rxf8 {1-0 (46) Giri,A (2755)-Anand,V (2776) Moscow 2016}) 11. h3 {[%emt 0:05:36]} Bh5 {[%emt 0:01:25] [#]} (11... Be6 $14) 12. a4 $146 {[%emt 0:01:53]} (12. g4 $1 $16 {[%cal Rg4h5]} Bg6 13. Nh4) ({Vorgänger:} 12. Bg5 Nbd7 13. Bxf6 Nxf6 14. Qd3 Bxf3 15. Qxf3 b5 16. Nd5 Nxd5 17. Bxd5 Rac8 {1-0 (53) Lobejko,R (2215)-Fojudzki,T Poland 1996}) 12... Nbd7 {[%emt 0:07:30]} 13. a5 {[%emt 0:05:23]} (13. g4 $5 {[%cal Rg4h5]} Bg6 14. Nh4 $14) 13... Nc5 {[%emt 0:01:58]} 14. Nd5 {[%emt 0:00:22]} Nxd5 {[%emt 0:08:28]} 15. Bxd5 {[%emt 0:00:14]} Rac8 {[%emt 0:03:25]} 16. Ra3 {[%emt 0:09:59]} Kh8 {[%emt 0:12:25]} 17. c4 {[%emt 0:07:02]} f5 {[%emt 0:12:58]} ({Better is} 17... h6 $14) 18. Bxc5 {[%emt 0:05:30]} dxc5 {[%emt 0:09:27]} 19. exf5 {[%emt 0:10:38]} Rcd8 {[%emt 0:02:31]} 20. Qc2 {[%emt 0:01:39]} Bxf3 {[%emt 0:03:17]} 21. Bxf3 {[%emt 0:05:22]} Rd4 {[%emt 0:01:39]} 22. Rb3 {[%emt 0:04:49]} Rb8 {[%emt 0:06:20]} 23. Rb6 {[%emt 0:01:47]} Bg5 {[%emt 0:07:26]} 24. Bd5 {[%emt 0:02:50]} Qd7 {[%emt 0:05:02]} 25. Re1 {[%emt 0:04:23]} Bf6 {[%emt 0:05:14]} 26. Re3 {[%emt 0:02:36]} Bd8 {[%emt 0:05:16]} 27. Re6 {[%emt 0:01:18]} Bc7 {[%emt 0:00:52]} 28. f6 {[%emt 0:03:36]} gxf6 {[%emt 0:00:45]} 29. Rxf6 {[%emt 0:00:42]} Rxd5 {[%emt 0:00:11]} 30. cxd5 {[%emt 0:00:21]} Rg8 {[%emt 0:00:45]} 31. Ref3 {[%emt 0:01:43]} Qg7 {[%emt 0:00:35]} 32. g3 {[%emt 0:00:09]} Bxa5 {[%emt 0:00:22]} 33. Rf7 {[%emt 0:02:04]} Qh6 {[%emt 0:00:47]} 34. Rxb7 {[%emt 0:04:44]} (34. Qf5 $142 Ra8 35. Qxe5+ Kg8 36. Rxb7 Rf8 37. Rxf8+ Qxf8 38. Qe6+ Kh8 39. Qe4) 34... Qxh3 {[%emt 0:00:29]} 35. Qe4 {[%emt 0:00:25]} Qh5 {[%emt 0:00:27]} 36. Rff7 {[%emt 0:00:27]} Qd1+ {[%emt 0:00:38]} 37. Kg2 {[%emt 0:00:12]} Rxg3+ {[%emt 0:00:21]} 38. fxg3 {[%emt 0:00:11]} Qd2+ {[%emt 0:00:26]} 39. Rf2 {[%emt 0:00:08]} 0-1